bitfinex/quotes_BTCUSD_20241128
["timestamp","ask_amount","ask_price","bid_price","bid_amount"]
[1732813392988,0.00086,95300.0,95299.0,0.24583822]
[1732813393451,0.00086,95300.0,95299.0,0.104932]
[1732813393683,0.00086,95300.0,95299.0,0.33977345]
[1732813393912,0.00486,95300.0,95299.0,0.104932]
[1732813394140,0.00486,95300.0,95299.0,0.1053904]
[1732813394607,0.00786,95300.0,95299.0,0.29309286]
[1732813395081,0.00586,95300.0,95299.0,0.1053904]
[1732813395297,0.00586,95300.0,95299.0,0.29311414]
[1732813395583,0.00586,95300.0,95299.0,0.29311413]
[1732813395768,0.00586,95300.0,95299.0,0.10539039]
[1732813398961,0.00586,95300.0,95299.0,0.24611469]
[1732813399192,0.00586,95300.0,95299.0,0.24611468]
[1732813401008,0.00586,95300.0,95299.0,0.10539038]
[1732813401228,0.00586,95300.0,95299.0,0.24611038]
[1732813402142,0.00586,95300.0,95299.0,0.24611037]
[1732813402611,0.00586,95300.0,95299.0,0.14117668]
[1732813402831,0.00586,95300.0,95299.0,0.00045837]
[1732813402832,0.110791,95300.0,95299.0,0.00045837]
[1732813403323,0.00586,95300.0,95299.0,0.10539037]
[1732813404203,0.00586,95300.0,95299.0,0.10539036]
[1732813405640,0.00586,95300.0,95299.0,0.24612941]
[1732813405853,0.00586,95300.0,95299.0,0.24613269]
[1732813406075,0.00586,95300.0,95299.0,0.19922317]
[1732813406312,0.00586,95300.0,95299.0,0.00045835]
[1732813406528,0.00586,95300.0,95299.0,0.10539035]
[1732813406754,0.00586,95300.0,95299.0,0.19922316]
[1732813407005,0.00586,95300.0,95299.0,0.09429116]
[1732813407225,0.00586,95300.0,95299.0,0.00045835]
[1732813407671,0.00586,95300.0,95299.0,0.10539035]
[1732813408360,0.00586,95300.0,95299.0,0.00045835]
[1732813409031,0.00586,95300.0,95299.0,0.10539035]
[1732813409478,0.00586,95300.0,95299.0,0.19922316]
[1732813409735,0.110791,95300.0,95299.0,0.00045835]
[1732813409958,0.00586,95300.0,95299.0,0.00045835]
[1732813410622,0.110791,95300.0,95299.0,0.00045835]
[1732813412427,0.111791,95300.0,95299.0,0.00045835]
[1732813412945,0.106791,95300.0,95299.0,0.00045835]
[1732813413874,0.21050059,95300.0,95299.0,0.00045835]
[1732813414129,0.33990059,95300.0,95299.0,0.00045835]
[1732813414368,0.34003621,95300.0,95299.0,0.00045835]
[1732813414600,0.33703621,95300.0,95299.0,0.00045835]
[1732813415119,0.34503621,95300.0,95299.0,0.00045835]
[1732813415357,0.34203621,95300.0,95299.0,0.00045835]
[1732813415590,0.34803621,95300.0,95299.0,0.00045835]
[1732813415833,0.35103621,95300.0,95299.0,0.00045835]
[1732813416544,0.36674947,95300.0,95299.0,0.00045835]
[1732813416989,0.35103621,95300.0,95299.0,0.00045835]
[1732813417703,0.37403621,95300.0,95299.0,0.00045835]
[1732813424510,0.11770521,95300.0,95299.0,0.00045835]
[1732813424727,0.01486,95300.0,95299.0,0.1995918]
[1732813424969,0.01486,95300.0,95299.0,0.10539034]
[1732813425195,0.01486,95300.0,95299.0,0.12164836]
[1732813425664,0.01486,95300.0,95299.0,0.17290553]
[1732813425897,0.01486,95300.0,95299.0,0.17104835]
[1732813426123,0.01486,95300.0,95299.0,0.45519897]
[1732813426406,0.01486,95300.0,95299.0,0.45334199]
[1732813426617,0.01186,95300.0,95299.0,0.35269355]
[1732813426848,0.01286,95300.0,95299.0,0.35269355]
[1732813427067,0.01286,95300.0,95299.0,0.35269354]
[1732813427284,0.00186,95300.0,95299.0,0.35269354]
[1732813427506,0.00086,95300.0,95299.0,0.35269354]
[1732813427787,0.00286,95300.0,95299.0,0.35269353]
[1732813427994,0.00086,95300.0,95299.0,0.35269353]
[1732813428250,0.00086,95300.0,95299.0,0.36169353]
[1732813429370,0.00086,95300.0,95299.0,0.77818639]
[1732813429653,0.00086,95300.0,95299.0,0.36169352]
[1732813429889,0.00086,95300.0,95299.0,0.36669352]
[1732813430807,0.00086,95300.0,95299.0,0.36669351]
[1732813432413,0.00086,95300.0,95299.0,0.2638483]
[1732813432685,0.00086,95300.0,95299.0,0.26384829]
[1732813433153,0.00086,95300.0,95299.0,0.21444829]
[1732813435053,0.00086,95300.0,95299.0,0.13564829]
[1732813435301,0.00086,95300.0,95299.0,0.32379444]
[1732813435540,0.00086,95300.0,95299.0,0.13564828]
[1732813435765,0.00086,95300.0,95299.0,0.27677265]
[1732813436015,0.105791,95300.0,95299.0,0.15058388]
[1732813436252,0.20863621,95300.0,95299.0,0.10354752]
[1732813436491,0.20863621,95300.0,95299.0,0.00945826]
[1732813436492,0.36050059,95300.0,95299.0,0.00945826]
[1732813436713,0.35863621,95300.0,95299.0,0.00945826]
[1732813437167,0.35863621,95300.0,95299.0,0.00045826]
[1732813437862,0.36063621,95300.0,95299.0,0.00045826]
[1732813438340,0.35863621,95300.0,95299.0,0.00045826]
[1732813438767,0.36763621,95300.0,95299.0,0.00045826]
[1732813442954,0.39063621,95300.0,95299.0,0.00045826]
[1732813444106,0.36763621,95300.0,95299.0,0.00045826]
[1732813445006,0.21763621,95300.0,95299.0,0.00045826]
[1732813449660,0.24063621,95300.0,95299.0,0.00045826]
[1732813450095,0.39063621,95300.0,95299.0,0.00045826]
[1732813450543,0.38163621,95300.0,95299.0,0.00045826]
[1732813450764,0.38163621,95300.0,95299.0,0.00145826]
[1732813450765,0.39363621,95300.0,95299.0,0.00145826]
[1732813450997,0.37063621,95300.0,95299.0,0.00145826]
[1732813452195,0.11570521,95300.0,95299.0,0.00145826]
[1732813452416,0.117791,95300.0,95299.0,0.00145826]
[1732813453407,0.105791,95300.0,95299.0,0.00045826]
[1732813453630,0.00086,95300.0,95299.0,0.00045826]
[1732813453855,0.01086,95300.0,95299.0,0.00045826]
[1732813454085,0.01086,95300.0,95299.0,0.10539026]
[1732813454311,0.00586,95300.0,95299.0,0.10539026]
[1732813454533,0.00886,95300.0,95299.0,0.10539026]
[1732813455005,0.00886,95300.0,95299.0,0.10539025]
[1732813455230,0.00886,95300.0,95299.0,0.00045825]
[1732813455706,0.00886,95300.0,95299.0,0.10539025]
[1732813456580,0.00386,95300.0,95299.0,0.10539025]
[1732813457559,0.00586,95300.0,95299.0,0.11322911]
[1732813458248,0.00086,95300.0,95299.0,0.11322911]
[1732813458481,0.00086,95300.0,95299.0,0.11522911]
[1732813458726,0.00086,95300.0,95299.0,0.11622911]
[1732813459190,0.00086,95300.0,95299.0,0.25734798]
[1732813459448,0.00086,95300.0,95299.0,0.4315744]
[1732813459661,0.00086,95300.0,95299.0,0.1963291]
[1732813459883,0.00086,95300.0,95299.0,0.19818598]
[1732813460102,0.00086,95300.0,95299.0,0.30103119]
[1732813460400,0.00086,95300.0,95299.0,0.50667431]
[1732813460817,0.00086,95300.0,95299.0,0.92349955]
[1732813461350,0.00086,95300.0,95299.0,0.5036743]
[1732813461548,0.00086,95300.0,95299.0,0.5176743]
[1732813461549,0.00186,95300.0,95299.0,0.5176743]
[1732813462767,0.00186,95300.0,95299.0,0.51767429]
[1732813467473,0.00186,95300.0,95299.0,0.51767428]
[1732813472977,0.00186,95300.0,95299.0,0.46017428]
[1732813473189,0.00186,95300.0,95299.0,0.59195061]
[1732813473418,0.00186,95300.0,95299.0,0.12722907]
[1732813473655,0.00186,95300.0,95299.0,0.12908595]
[1732813474072,0.00186,95300.0,95299.0,0.12908594]
[1732813474343,0.00186,95300.0,95299.0,0.11508594]
[1732813474564,0.00086,95300.0,95299.0,0.11508594]
[1732813474787,0.00186,95300.0,95299.0,0.12508594]
[1732813475210,0.00186,95300.0,95299.0,0.12408594]
[1732813476537,0.00186,95300.0,95299.0,0.12808594]
[1732813477324,0.00186,95300.0,95299.0,0.12622906]
[1732813477332,0.00186,95300.0,95299.0,0.31416005]
[1732813477519,0.00186,95300.0,95299.0,0.1262243]
[1732813477971,0.00186,95300.0,95299.0,0.30254749]
[1732813477972,0.00086,95300.0,95299.0,0.30254749]
[1732813478181,0.00086,95300.0,95299.0,0.30816005]
[1732813478401,0.00186,95300.0,95299.0,0.30816005]
[1732813478894,0.00186,95300.0,95299.0,0.1232243]
[1732813479112,0.00186,95300.0,95299.0,0.31116005]
[1732813479323,0.00186,95300.0,95299.0,0.1232243]
[1732813480193,0.00086,95300.0,95299.0,0.1162243]
[1732813480626,0.00086,95300.0,95299.0,0.1202243]
[1732813480859,0.00086,95300.0,95299.0,0.1172243]
[1732813481291,0.00086,95300.0,95299.0,0.1192243]
[1732813483925,0.00086,95300.0,95299.0,0.11923955]
[1732813484139,0.00086,95300.0,95299.0,0.35414146]
[1732813484385,0.00086,95300.0,95299.0,0.11923955]
[1732813484635,0.00086,95300.0,95299.0,0.12109663]
[1732813485108,0.00086,95300.0,95299.0,0.11324728]
[1732813485797,0.00086,95300.0,95299.0,0.12109822]
[1732813488728,0.00086,95300.0,95299.0,0.11924114]
[1732813488939,0.00086,95300.0,95299.0,0.1210981]
[1732813490261,0.00086,95300.0,95299.0,0.11324716]
[1732813491398,0.00086,95300.0,95299.0,0.39540519]
[1732813491602,0.00086,95300.0,95299.0,0.39354823]
[1732813491840,0.00086,95300.0,95299.0,0.29463541]
[1732813493353,0.00086,95300.0,95299.0,0.71125938]
[1732813493600,0.00086,95300.0,95299.0,0.71125937]
[1732813493855,0.00086,95300.0,95299.0,0.2946354]
[1732813495611,0.00086,95300.0,95299.0,0.71167059]
[1732813495856,0.00086,95300.0,95299.0,0.2946354]
[1732813496076,0.00086,95300.0,95299.0,0.71167059]
[1732813496308,0.00086,95300.0,95299.0,0.2946354]
[1732813498477,0.00086,95300.0,95299.0,0.3046354]
[1732813499664,0.00086,95300.0,95299.0,0.2142354]
[1732813500164,0.00086,95300.0,95299.0,0.21609229]
[1732813501117,0.00086,95300.0,95299.0,0.21409229]
[1732813501336,0.00086,95300.0,95299.0,0.21509229]
[1732813501603,0.00186,95300.0,95299.0,0.22409229]
[1732813501818,0.00186,95300.0,95299.0,0.2222354]
[1732813502713,0.00186,95300.0,95299.0,0.11939019]
[1732813504256,0.00186,95300.0,95299.0,0.12124724]
[1732813505582,0.00186,95300.0,95299.0,0.11939019]
[1732813506450,0.00186,95300.0,95299.0,0.5372725]
[1732813508461,0.00186,95300.0,95299.0,0.11939019]
[1732813511560,0.05046,95300.0,95299.0,0.01445819]
[1732813511767,0.12886,95300.0,95299.0,0.11939019]
[1732813511979,0.12886,95300.0,95299.0,0.01445819]
[1732813512184,0.233791,95300.0,95299.0,0.01445819]
[1732813512402,0.233791,95300.0,95299.0,0.25031346]
[1732813513069,0.233791,95300.0,95299.0,0.00945819]
[1732813513694,0.232791,95300.0,95299.0,0.00045819]
[1732813513901,0.233791,95300.0,95299.0,0.00045819]
[1732813514156,0.233791,95300.0,95299.0,0.18907925]
[1732813514373,0.233791,95300.0,95299.0,0.1890863]
[1732813514574,0.234791,95300.0,95299.0,0.1890863]
[1732813514784,0.234791,95300.0,95299.0,0.00045819]
[1732813515239,0.234791,95300.0,95299.0,0.18905827]
[1732813515240,0.12986,95300.0,95299.0,0.18905827]
[1732813515723,0.12986,95300.0,95299.0,0.10539019]
[1732813515949,0.12886,95300.0,95299.0,0.10539019]
[1732813516181,0.12886,95300.0,95299.0,0.29399646]
[1732813516426,0.00286,95300.0,95299.0,0.29399646]
[1732813516628,0.00186,95300.0,95299.0,0.10539019]
[1732813516857,0.00086,95300.0,95299.0,0.10539019]
[1732813517054,0.00086,95300.0,95299.0,0.38842145]
[1732813517310,0.00086,95300.0,95299.0,0.10539018]
[1732813518588,0.00086,95300.0,95299.0,0.00045818]
[1732813518791,0.105791,95300.0,95299.0,0.00045818]
[1732813519420,0.105791,95300.0,95299.0,0.23618546]
[1732813519835,0.00086,95300.0,95299.0,0.23618546]
[1732813520041,0.00186,95300.0,95299.0,0.23618546]
[1732813520259,0.108791,95300.0,95299.0,0.23618546]
[1732813521847,0.233591,95300.0,95299.0,0.00045818]
[1732813522294,0.233591,95300.0,95299.0,0.18902112]
[1732813522707,0.233591,95300.0,95299.0,0.18900871]
[1732813523196,0.233591,95300.0,95299.0,0.00045818]
[1732813523421,0.233591,95300.0,95299.0,0.14185892]
[1732813523832,0.233591,95300.0,95299.0,0.00045818]
[1732813524230,0.233591,95300.0,95299.0,0.0947216]
[1732813524871,0.33643621,95300.0,95299.0,0.00045818]
[1732813525694,0.50943621,95300.0,95299.0,0.00045818]
[1732813526758,0.50843621,95300.0,95299.0,0.00045818]
[1732813527437,0.51643621,95300.0,95299.0,0.00145818]
[1732813527641,0.50643621,95300.0,95299.0,0.00045818]
[1732813527854,0.51343621,95300.0,95299.0,0.00145818]
[1732813528060,0.52143621,95300.0,95299.0,0.00245818]
[1732813530431,0.49843621,95300.0,95299.0,0.00245818]
[1732813530660,0.01586,95300.0,95299.0,0.00245818]
[1732813531113,0.120791,95300.0,95299.0,0.00245818]
[1732813531323,0.00886,95300.0,95299.0,0.00145818]
[1732813531532,0.00086,95300.0,95299.0,0.10539018]
[1732813531748,0.01686,95300.0,95299.0,0.00245818]
[1732813533124,0.00086,95300.0,95299.0,0.00045818]
[1732813533543,0.00586,95300.0,95299.0,0.00045818]
[1732813536510,0.00586,95300.0,95299.0,0.10539018]
[1732813537604,0.00586,95300.0,95299.0,0.00045818]
[1732813538896,0.00586,95300.0,95299.0,0.10539018]
[1732813539320,0.00586,95300.0,95299.0,0.00045818]
[1732813540484,0.00586,95300.0,95299.0,0.10539018]
[1732813541584,0.00586,95300.0,95299.0,0.00045818]
[1732813541964,0.00586,95300.0,95299.0,0.10539018]
[1732813542181,0.00586,95300.0,95299.0,0.00045818]
[1732813542417,0.110791,95300.0,95299.0,0.00045818]
[1732813542588,0.33970059,95300.0,95299.0,0.00045818]
[1732813542785,0.33783621,95300.0,95299.0,0.00045818]
[1732813545525,0.48783621,95300.0,95299.0,0.00045818]
[1732813545975,0.48583621,95300.0,95299.0,0.00045818]
[1732813546196,0.48783621,95300.0,95299.0,0.00045818]
[1732813546410,0.51083621,95300.0,95299.0,0.00045818]
[1732813546636,0.51483621,95300.0,95299.0,0.00145818]
[1732813546846,0.50583621,95300.0,95299.0,0.00045818]
[1732813547060,0.50583621,95300.0,95299.0,0.00245818]
[1732813547061,0.51283621,95300.0,95299.0,0.00245818]
[1732813547344,0.52183621,95300.0,95299.0,0.00245818]
[1732813548749,0.63305667,95300.0,95299.0,0.00245818]
[1732813548962,0.64305667,95300.0,95299.0,0.00245818]
[1732813550784,0.423342,95290.0,95289.0,0.0017198]
[1732813551012,0.52618721,95290.0,95289.0,0.0017198]
[1732813551496,0.62901867,95290.0,95289.0,0.0017198]
[1732813551730,0.62901867,95290.0,95269.0,0.0017202]
[1732813551731,0.104964,95270.0,95269.0,0.0017202]
[1732813551977,0.48080921,95270.0,95269.0,0.0017202]
[1732813553939,0.35780921,95270.0,95269.0,0.0017202]
[1732813554159,0.37380921,95270.0,95269.0,0.0037202]
[1732813554378,0.22380921,95270.0,95269.0,0.0037202]
[1732813554589,0.21680921,95270.0,95269.0,0.0027202]
[1732813554812,0.20780921,95270.0,95269.0,0.0017202]
[1732813555269,0.10284521,95270.0,95269.0,0.0017202]
[1732813555272,0.20780921,95270.0,95269.0,0.0017202]
[1732813555528,0.0872259,95289.0,95269.0,0.00959515]
[1732813555529,0.209909,95279.0,95269.0,0.00959515]
[1732813555749,0.0872259,95289.0,95270.0,0.00787495]
[1732813555750,0.104964,95271.0,95270.0,0.00787495]
[1732813556187,0.20780921,95271.0,95270.0,0.00787495]
[1732813556431,0.104964,95270.0,95269.0,0.0027202]
[1732813556640,0.20967359,95270.0,95269.0,0.0017202]
[1732813556894,0.20967359,95270.0,95269.0,0.0027202]
[1732813556895,0.21867359,95270.0,95269.0,0.0027202]
[1732813557112,0.21680921,95270.0,95269.0,0.0027202]
[1732813557334,0.20780921,95270.0,95269.0,0.0017202]
[1732813557785,0.21267359,95270.0,95269.0,0.0017202]
[1732813558239,0.21267359,95270.0,95269.0,0.0027202]
[1732813558240,0.21767359,95270.0,95269.0,0.0027202]
[1732813558474,0.21580921,95270.0,95269.0,0.0027202]
[1732813559871,0.008,95270.0,95269.0,0.0027202]
[1732813560092,0.008,95270.0,95269.0,0.1076852]
[1732813560565,0.112964,95270.0,95269.0,0.0027202]
[1732813563148,0.008,95270.0,95269.0,0.0027202]
[1732813563384,0.008,95270.0,95269.0,0.1076852]
[1732813563836,0.008,95270.0,95269.0,0.0027202]
[1732813564568,0.005,95270.0,95269.0,0.0027202]
[1732813565028,0.001,95270.0,95269.0,0.0017202]
[1732813565497,0.106964,95270.0,95269.0,0.0017202]
[1732813565724,0.10658156,95270.0,95269.0,0.0017202]
[1732813565944,0.00161756,95270.0,95269.0,0.0017202]
[1732813566183,0.00161756,95270.0,95269.0,0.0037202]
[1732813567130,0.00061756,95270.0,95269.0,0.01028581]
[1732813567357,0.00161756,95270.0,95269.0,0.00828581]
[1732813567565,0.10658156,95270.0,95269.0,0.00828581]
[1732813567782,0.10758156,95270.0,95269.0,0.00828581]
[1732813568027,0.10758156,95270.0,95269.0,0.0017202]
[1732813568028,0.10558156,95270.0,95269.0,0.0017202]
[1732813568441,0.10558156,95270.0,95269.0,0.0027202]
[1732813568654,0.10558156,95270.0,95269.0,0.0017202]
[1732813568876,0.00061756,95270.0,95269.0,0.1066852]
[1732813569084,0.00161756,95270.0,95269.0,0.1066852]
[1732813569351,0.00161756,95270.0,95269.0,0.11325092]
[1732813569584,0.00261756,95270.0,95269.0,0.11325092]
[1732813570035,0.00261756,95270.0,95269.0,0.00828592]
[1732813570260,0.00261756,95270.0,95269.0,0.0017202]
[1732813571157,0.00361756,95270.0,95269.0,0.00828585]
[1732813571365,0.00361756,95270.0,95269.0,0.0017202]
[1732813571602,0.00361756,95270.0,95269.0,0.1066852]
[1732813572283,0.00361756,95270.0,95269.0,0.1132506]
[1732813572717,0.00361756,95270.0,95269.0,0.24663132]
[1732813572943,0.00361756,95270.0,95269.0,0.34066665]
[1732813573437,0.00361756,95270.0,95269.0,0.24663132]
[1732813575262,0.00361756,95270.0,95269.0,0.24662754]
[1732813575923,0.00361756,95270.0,95269.0,0.24006214]
[1732813576144,0.00361756,95270.0,95269.0,0.2274852]
[1732813577133,0.00361756,95270.0,95269.0,0.24662614]
[1732813577362,0.00361756,95270.0,95269.0,0.34066147]
[1732813578240,0.00361756,95270.0,95269.0,0.29546147]
[1732813579446,0.00361756,95270.0,95269.0,0.20142614]
[1732813579697,0.00361756,95270.0,95269.0,0.02086114]
[1732813579924,0.00361756,95270.0,95269.0,0.20733569]
[1732813580149,0.00361756,95270.0,95269.0,0.21991162]
[1732813580822,0.00361756,95270.0,95269.0,0.11494662]
[1732813581706,0.00361756,95270.0,95269.0,0.12582614]
[1732813582143,0.00361756,95270.0,95269.0,0.1066852]
[1732813583277,0.00361756,95270.0,95269.0,0.24773819]
[1732813584002,0.00361756,95270.0,95269.0,0.14277319]
[1732813584235,0.00361756,95270.0,95269.0,0.24773819]
[1732813584462,0.00361756,95270.0,95269.0,0.1066852]
[1732813585418,0.00361756,95270.0,95269.0,0.29475586]
[1732813586333,0.00361756,95270.0,95269.0,0.1066852]
[1732813587510,0.00361756,95270.0,95269.0,0.34177352]
[1732813588379,0.00361756,95270.0,95269.0,0.1066852]
[1732813589260,0.00361756,95270.0,95269.0,0.0017202]
[1732813589475,0.00361756,95270.0,95269.0,0.1066852]
[1732813591768,0.10858156,95270.0,95269.0,0.0017202]
[1732813592434,0.10858156,95270.0,95269.0,0.09604326]
[1732813592662,0.10858156,95270.0,95269.0,0.0017202]
[1732813592880,0.33552677,95270.0,95269.0,0.0017202]
[1732813593104,0.33552677,95270.0,95269.0,0.096046]
[1732813593552,0.33552677,95270.0,95269.0,0.0017202]
[1732813594010,0.33452677,95270.0,95269.0,0.0017202]
[1732813594263,0.33252677,95270.0,95269.0,0.0017202]
[1732813594470,0.34152677,95270.0,95269.0,0.0027202]
[1732813595208,0.00961756,95270.0,95269.0,0.0027202]
[1732813595447,0.00961756,95270.0,95269.0,0.14420749]
[1732813595661,0.00661756,95270.0,95269.0,0.1076852]
[1732813595880,0.00661756,95270.0,95269.0,0.0027202]
[1732813596097,0.00661756,95270.0,95269.0,0.0092856]
[1732813596343,0.11458156,95270.0,95269.0,0.15076351]
[1732813596555,0.11458156,95270.0,95269.0,0.0092856]
[1732813596785,0.16248156,95270.0,95269.0,0.0092856]
[1732813596988,0.26232677,95270.0,95269.0,0.0027202]
[1732813597208,0.25732677,95270.0,95269.0,0.0017202]
[1732813597673,0.25832677,95270.0,95269.0,0.0017202]
[1732813598145,0.26132677,95270.0,95269.0,0.0017202]
[1732813598361,0.34092677,95270.0,95269.0,0.0017202]
[1732813599524,0.33992677,95270.0,95269.0,0.0017202]
[1732813599996,0.34192677,95270.0,95269.0,0.0017202]
[1732813600293,0.35784515,95270.0,95269.0,0.0017202]
[1732813600513,0.34192677,95270.0,95269.0,0.0017202]
[1732813600741,0.00661756,95270.0,95269.0,0.09604192]
[1732813600962,0.00661756,95270.0,95269.0,0.0960829]
[1732813601205,0.00661756,95270.0,95269.0,0.0017202]
[1732813601426,0.00061756,95270.0,95269.0,0.0020263]
[1732813601875,0.10958156,95270.0,95269.0,0.0020263]
[1732813602104,0.11144594,95270.0,95269.0,0.09639102]
[1732813602505,0.11258156,95270.0,95269.0,0.09639102]
[1732813602782,0.11458156,95270.0,95269.0,0.0020263]
[1732813603000,0.11458156,95270.0,95269.0,0.09639019]
[1732813603215,0.11258156,95270.0,95269.0,0.0020263]
[1732813603438,0.00761756,95270.0,95269.0,0.00859204]
[1732813603652,0.00861756,95270.0,95269.0,0.00859204]
[1732813604556,0.00861756,95270.0,95269.0,0.15007463]
[1732813604998,0.00861756,95270.0,95269.0,0.25503963]
[1732813605216,0.00861756,95270.0,95269.0,0.30220049]
[1732813605459,0.00861756,95270.0,95269.0,0.11355704]
[1732813606718,0.00861756,95270.0,95269.0,0.34936136]
[1732813606949,0.00861756,95270.0,95269.0,0.11355704]
[1732813607667,0.00861756,95270.0,95269.0,0.16305704]
[1732813608762,0.00161756,95270.0,95269.0,0.16305704]
[1732813608982,0.00161756,95270.0,95269.0,0.11355704]
[1732813608983,0.00061756,95270.0,95269.0,0.11355704]
[1732813609441,0.00061756,95270.0,95269.0,0.11455704]
[1732813610091,0.00061756,95270.0,95269.0,0.11655704]
[1732813616636,0.00061756,95270.0,95269.0,0.11655706]
[1732813617531,0.00061756,95270.0,95269.0,0.10999132]
[1732813617758,0.00061756,95270.0,95269.0,0.11655619]
[1732813618657,0.00061756,95270.0,95269.0,0.39963961]
[1732813618879,0.00061756,95270.0,95269.0,0.39960266]
[1732813619321,0.00061756,95270.0,95269.0,0.19655619]
[1732813619581,0.00061756,95270.0,95269.0,0.24561369]
[1732813619812,0.00061756,95270.0,95269.0,0.24375619]
[1732813620491,0.00061756,95270.0,95269.0,0.24075619]
[1732813620768,0.00061756,95270.0,95269.0,0.19355619]
[1732813620987,0.00061756,95270.0,95269.0,0.01659119]
[1732813621207,0.00061756,95270.0,95269.0,0.01159119]
[1732813621499,0.00061756,95270.0,95269.0,0.00859119]
[1732813621731,0.00061756,95270.0,95269.0,0.11699132]
[1732813621732,0.00161756,95270.0,95269.0,0.11699132]
[1732813621944,0.00061756,95270.0,95269.0,0.10999132]
[1732813622846,0.00061756,95270.0,95269.0,0.10699132]
[1732813623351,0.00061756,95270.0,95269.0,0.10799132]
[1732813623818,0.00061756,95270.0,95269.0,0.12085161]
[1732813624030,0.00061756,95270.0,95269.0,0.11985161]
[1732813624281,0.00061756,95270.0,95269.0,0.01488661]
[1732813624500,0.00061756,95270.0,95269.0,0.00988661]
[1732813624723,0.00061756,95270.0,95269.0,0.11485161]
[1732813624940,0.00061756,95270.0,95269.0,0.00988661]
[1732813625193,0.10558156,95270.0,95269.0,0.00988661]
[1732813625622,0.00061756,95270.0,95269.0,0.00988661]
[1732813626320,0.10558156,95270.0,95269.0,0.00988661]
[1732813626534,0.00061756,95270.0,95269.0,0.00988661]
[1732813629690,0.10558156,95270.0,95269.0,0.00988661]
[1732813629978,0.10558156,95270.0,95269.0,0.24578555]
[1732813630208,0.10558156,95270.0,95269.0,0.00988661]
[1732813631133,0.10658156,95270.0,95269.0,0.00988661]
[1732813631372,0.10858156,95270.0,95269.0,0.00988661]
[1732813633083,0.10758156,95270.0,95269.0,0.00988661]
[1732813633793,0.00261756,95270.0,95269.0,0.00988661]
[1732813634021,0.10758156,95270.0,95269.0,0.00988661]
[1732813636180,0.00261756,95270.0,95269.0,0.00988661]
[1732813637126,0.00261756,95270.0,95269.0,0.19226263]
[1732813638063,0.00061756,95270.0,95269.0,0.19226264]
[1732813638790,0.00061756,95270.0,95269.0,0.19344078]
[1732813639015,0.00061756,95270.0,95269.0,0.19412034]
[1732813639236,0.00061756,95270.0,95269.0,0.20976327]
[1732813640196,0.00061756,95270.0,95269.0,0.19226264]
[1732813640885,0.00061756,95270.0,95269.0,0.47535839]
[1732813641615,0.00061756,95270.0,95269.0,0.47535953]
[1732813641831,0.00061756,95270.0,95269.0,0.19226242]
[1732813642305,0.00061756,95270.0,95269.0,0.47536006]
[1732813642545,0.00061756,95270.0,95269.0,0.39796006]
[1732813643025,0.00061756,95270.0,95269.0,0.11486242]
[1732813643465,0.00061756,95270.0,95269.0,0.00989742]
[1732813643466,0.10558156,95270.0,95269.0,0.00989742]
[1732813643929,0.21029115,95270.0,95269.0,0.00989742]
[1732813644155,0.28979115,95270.0,95269.0,0.09641378]
[1732813644371,0.28792677,95270.0,95269.0,0.00202633]
[1732813644588,0.28792677,95270.0,95269.0,0.14360319]
[1732813644816,0.20842677,95270.0,95269.0,0.14360319]
[1732813645077,0.21042677,95270.0,95269.0,0.14360319]
[1732813645507,0.10558156,95270.0,95269.0,0.00202633]
[1732813645730,0.10558156,95270.0,95269.0,0.14361752]
[1732813645950,0.10558156,95270.0,95269.0,0.00202633]
[1732813646168,0.10558156,95270.0,95269.0,0.14361752]
[1732813646461,0.10558156,95270.0,95269.0,0.00202633]
[1732813646924,0.10958156,95270.0,95269.0,0.00202633]
[1732813647171,0.10558156,95270.0,95269.0,0.00202633]
[1732813647389,0.10658156,95270.0,95269.0,0.14362633]
[1732813647605,0.10858156,95270.0,95269.0,0.00202633]
[1732813647817,0.00361756,95270.0,95269.0,0.00202633]
[1732813648037,0.00361756,95270.0,95269.0,0.11485829]
[1732813648471,0.00361756,95270.0,95269.0,0.11485787]
[1732813649661,0.00361756,95270.0,95269.0,0.00989287]
[1732813650140,0.00361756,95270.0,95269.0,0.24590742]
[1732813652237,0.10858156,95270.0,95269.0,0.24590742]
[1732813652485,0.00361756,95270.0,95269.0,0.24590742]
[1732813652931,0.00361756,95270.0,95269.0,0.24590921]
[1732813653159,0.10858156,95270.0,95269.0,0.24590921]
[1732813653399,0.00361756,95270.0,95269.0,0.24590921]
[1732813654140,0.10858156,95270.0,95269.0,0.24590921]
[1732813654360,0.10858156,95270.0,95269.0,0.24591008]
[1732813655492,0.00361756,95270.0,95269.0,0.00989374]
[1732813655716,0.10858156,95270.0,95269.0,0.00989374]
[1732813655931,0.10858156,95270.0,95269.0,0.24589993]
[1732813656180,0.10858156,95270.0,95269.0,0.24589808]
[1732813657115,0.10858156,95270.0,95269.0,0.00989374]
[1732813657335,0.10858156,95270.0,95269.0,0.2458999]
[1732813657559,0.10858156,95270.0,95269.0,0.00989374]
[1732813658292,0.10858156,95270.0,95269.0,0.24589711]
[1732813658518,0.33882677,95270.0,95269.0,0.00202633]
[1732813658760,0.33882677,95270.0,95269.0,0.14363643]
[1732813659005,0.33882677,95270.0,95269.0,0.00202633]
[1732813659444,0.51182677,95270.0,95269.0,0.00202633]
[1732813659668,0.5275521,95270.0,95269.0,0.00202633]
[1732813660815,0.5255521,95270.0,95269.0,0.00202633]
[1732813661032,0.5335521,95270.0,95269.0,0.00302633]
[1732813662458,0.5335521,95270.0,95269.0,0.00402633]
[1732813662459,0.5405521,95270.0,95269.0,0.00402633]
[1732813662908,0.5335521,95270.0,95269.0,0.00302633]
[1732813663134,0.5335521,95270.0,95269.0,0.00402633]
[1732813663135,0.5405521,95270.0,95269.0,0.00402633]
[1732813668653,0.5505521,95270.0,95269.0,0.00402633]
[1732813670030,0.5405521,95270.0,95269.0,0.00402633]
[1732813670248,0.5505521,95270.0,95269.0,0.00402633]
[1732813670928,0.5405521,95270.0,95269.0,0.00402633]
[1732813675910,0.4131521,95270.0,95269.0,0.00402633]
[1732813676140,0.22442677,95270.0,95269.0,0.00402633]
[1732813677013,0.21742677,95270.0,95269.0,0.00302633]
[1732813677238,0.22442677,95270.0,95269.0,0.00402633]
[1732813677750,0.35062677,95270.0,95269.0,0.00402633]
[1732813677964,0.49162677,95270.0,95269.0,0.00302633]
[1732813678415,0.50062677,95270.0,95269.0,0.00402633]
[1732813678645,0.49362677,95270.0,95269.0,0.00202633]
[1732813678857,0.51862677,95270.0,95269.0,0.00202633]
[1732813679295,0.52662677,95270.0,95269.0,0.00202633]
[1732813679518,0.53462677,95270.0,95269.0,0.00302633]
[1732813679732,0.52562677,95270.0,95269.0,0.00202633]
[1732813680010,0.53562677,95270.0,95269.0,0.00202633]
[1732813680192,0.5562645,95270.0,95269.0,0.00202633]
[1732813680629,0.61882959,95270.0,95269.0,0.00202633]
[1732813680871,0.61882959,95270.0,95269.0,3.3e-07]